bitfinex/quotes_ETHUSD_20210401
["timestamp","ask_amount","ask_price","bid_price","bid_amount"]
[1617292793110,8.12884,1944.2,1944.1,1.0]
[1617292793312,10.35182374,1944.2,1944.1,1.0]
[1617292793514,2.208,1944.2,1944.1,1.28]
[1617292793711,2.118,1944.3,1944.1,1.28]
[1617292793923,2.118,1944.3,1944.1,1.0]
[1617292794122,2.32715,1944.4,1944.1,1.0]
[1617292794313,6.18633,1944.4,1944.1,1.0]
[1617292794518,5.80633,1944.4,1944.1,1.0]
[1617292794810,0.38,1944.2,1944.1,1.0]
[1617292795277,6.05633,1944.4,1944.1,1.0]
[1617292795479,5.80633,1944.4,1944.1,1.294]
[1617292795877,5.66633,1944.4,1944.2,0.385]
[1617292796086,14.1726,1944.9,1944.4,5.01]
[1617292796087,2.118,1944.9,1944.4,5.01]
[1617292796290,0.53678198,1945.0,1944.7,0.715]
[1617292796492,3.0,1945.7,1944.8,8.3647]
[1617292796493,3.85716,1945.3,1944.8,8.3647]
[1617292796684,3.99716,1945.3,1944.8,10.20268374]
[1617292796884,3.99716,1945.3,1945.0,0.729]
[1617292796885,0.14,1945.3,1945.0,0.729]
[1617292797089,15.1879,1945.6,1945.1,0.371]
[1617292797287,0.54,1945.6,1945.2,0.329]
[1617292797689,0.39,1945.3,1945.0,7.71346]
[1617292797886,4.24699,1945.3,1945.0,0.35]
[1617292798088,4.24699,1945.3,1944.8,7.9797]
[1617292798089,0.41,1945.2,1944.8,7.9797]
[1617292798399,0.55,1945.2,1944.8,7.9797]
[1617292798587,0.55,1945.2,1944.9,0.371]
[1617292798794,11.12204,1945.3,1945.0,14.5]
[1617292798988,11.26204,1945.3,1945.0,14.5]
[1617292799389,3.85744,1945.2,1945.1,0.329]
[1617292799596,10.68575,1945.6,1945.1,0.329]
[1617292799792,10.68575,1945.6,1945.2,0.371]
[1617292799793,8.25352,1945.6,1945.2,0.371]
[1617292800413,3.85676,1945.5,1945.2,0.371]
[1617292800608,3.85676,1945.5,1945.3,0.329]
[1617292800791,3.85676,1945.5,1945.3,0.28]
[1617292800993,0.3917,1945.6,1945.3,0.28]
[1617292801191,24.24753,1945.9,1945.3,13.4124]
[1617292801391,0.53,1945.8,1945.4,0.42]
[1617292801590,0.53,1945.8,1945.3,13.1324]
[1617292802089,0.53,1945.8,1945.3,8.1224]
[1617292802294,3.85626,1945.7,1945.3,8.1224]
[1617292802590,11.56962,1945.7,1945.3,8.1224]
[1617292803308,3.85626,1945.9,1945.4,0.41]
[1617292803618,5.0,1946.0,1945.6,5.42]
[1617292803814,5.0,1946.0,1945.7,2.20942084]
[1617292804012,4.0,1946.0,1945.7,10.10082084]
[1617292804309,4.0,1946.0,1945.9,22.36]
[1617292804612,4.0,1946.0,1945.9,22.76]
[1617292804912,9.04144728,1946.8,1945.9,33.84017577]
[1617292804913,0.04629728,1946.8,1945.9,33.84017577]
[1617292805109,0.04629728,1946.8,1946.0,5.10406894]
[1617292805308,0.04629728,1946.8,1946.1,5.01]
[1617292805513,0.04629728,1946.8,1946.3,2.61724144]
[1617292805738,0.04629728,1946.8,1946.4,0.09406894]
[1617292805939,0.04629728,1946.8,1946.3,3.91131038]
[1617292806141,1.0,1946.9,1946.4,0.41]
[1617292806343,1.0,1946.9,1946.5,2.21724144]
[1617292806544,0.02244723,1946.8,1946.5,2.60724144]
[1617292806741,0.02244723,1946.8,1946.7,16.63]
[1617292807042,0.02244723,1946.8,1946.7,21.30220495]
[1617292807648,0.02244723,1946.8,1946.7,26.31220495]
[1617292807944,20.193042,1947.8,1946.7,26.31220495]
[1617292807945,13.0,1947.8,1946.8,20.45]
[1617292808152,13.0,1947.8,1947.0,6.21]
[1617292808153,13.4,1947.8,1947.0,6.21]
[1617292808363,13.4,1947.8,1947.2,2.22421518]
[1617292808561,12.9,1947.8,1947.2,2.31828412]
[1617292808761,11.9,1947.8,1947.3,5.01]
[1617292808963,11.9,1947.8,1947.5,2.2230969]
[1617292809262,11.9,1947.8,1947.5,9.9359969]
[1617292809663,11.9,1947.8,1947.5,16.5559969]
[1617292809968,11.9,1947.8,1947.7,7.2330969]
[1617292810379,11.9,1947.8,1947.7,8.8330969]
[1617292810779,11.9,1947.8,1947.7,7.6330969]
[1617292810980,11.9,1947.8,1947.7,17.0830969]
[1617292811388,11.9,1947.8,1947.7,47.0830969]
[1617292811584,11.9,1947.8,1947.7,17.0830969]
[1617292812587,0.35,1948.4,1947.9,2.24404908]
[1617292812786,0.04174697,1948.6,1948.0,7.3561]
[1617292813002,3.78181201,1948.8,1948.1,29.23404908]
[1617292813188,19.25277133,1949.1,1948.1,29.23404908]
[1617292813189,9.94405942,1949.0,1948.5,2.43004334]
[1617292813388,9.94405942,1949.0,1948.7,2.3095141]
[1617292813621,0.03,1949.0,1948.7,2.3095141]
[1617292813814,21.82574343,1949.8,1948.7,4.18635408]
[1617292814014,8.336457,1949.9,1949.4,0.39]
[1617292814015,4.218,1949.9,1949.4,0.39]
[1617292814217,0.00702951,1949.7,1949.5,2.31848554]
[1617292814421,0.9,1949.9,1949.5,1.92848554]
[1617292814620,0.9,1949.9,1949.6,0.38]
[1617292814816,0.9,1949.9,1949.6,2.22114872]
[1617292815026,0.9,1949.9,1949.7,2.27376498]
[1617292815027,0.75,1949.9,1949.7,2.27376498]
[1617292815221,0.75,1949.9,1949.6,5.01]
[1617292815424,0.75,1949.9,1949.7,2.27472863]
[1617292815617,0.00605897,1949.8,1949.7,2.27480041]
[1617292815819,4.38307234,1950.7,1949.9,2.27303253]
[1617292816130,0.50846506,1950.0,1949.9,27.36891718]
[1617292816349,5.06e-06,1950.0,1949.9,29.7799348]
[1617292816645,13.0491079,1950.9,1950.0,0.09406894]
[1617292816842,12.0101079,1950.9,1950.1,26.6]
[1617292817045,11.5101079,1950.9,1950.3,2.35061292]
[1617292817245,11.2601079,1950.9,1950.4,5.01]
[1617292817445,2.71692595,1951.0,1950.6,2.35061292]
[1617292817945,2.71692595,1951.0,1950.9,0.19069009]
[1617292818343,4.23636,1951.3,1950.9,21.75]
[1617292818344,3.53638595,1951.3,1950.9,21.75]
[1617292818544,3.53638595,1951.3,1951.0,2.31762268]
[1617292818873,13.6166397,1951.4,1950.9,9.0]
[1617292818874,7.69288,1951.4,1950.9,9.0]
[1617292819171,1.584583,1951.6,1951.0,4.91435638]
[1617292819371,1.584583,1951.6,1951.0,7.2604]
[1617292819372,0.4,1951.3,1951.0,7.2604]
[1617292819569,0.38,1951.2,1951.0,7.2604]
[1617292819869,0.39,1951.2,1951.0,7.2604]
[1617292820070,1.584583,1951.6,1951.0,7.2604]
[1617292820573,5.01,1951.5,1951.0,9.39882413]
[1617292820772,1.99998908,1951.4,1951.0,7.2604]
[1617292821591,0.00732407,1951.1,1951.0,7.20725482]
[1617292822293,1.99998908,1951.1,1951.0,7.20725482]
[1617292822892,1.99998908,1951.1,1951.0,8.1205081]
[1617292823098,28.59998908,1951.1,1951.0,0.55769328]
[1617292823395,0.39,1951.0,1950.9,2.02e-06]
[1617292823600,26.6,1950.9,1950.4,0.07267954]
[1617292823794,0.99998908,1950.8,1950.4,0.07267954]
[1617292824126,27.99998908,1950.5,1950.4,0.07267954]
[1617292824421,27.99998908,1950.5,1950.4,9.54e-06]
[1617292824722,31.61,1950.3,1950.2,9.41e-06]
[1617292824937,32.99998908,1950.3,1950.2,9.41e-06]
[1617292825129,40.99998908,1950.3,1950.2,9.41e-06]
[1617292825326,40.99998908,1950.3,1950.0,2.849e-05]
[1617292825549,2.4311628,1950.2,1950.0,2.849e-05]
[1617292825735,6.39998908,1950.1,1950.0,2.849e-05]
[1617292826628,14.00998908,1950.1,1950.0,2.849e-05]
[1617292826835,0.99998908,1950.1,1950.0,2.849e-05]
[1617292827039,1.37998908,1950.3,1950.0,2.849e-05]
[1617292827235,1.40998908,1950.1,1950.0,2.849e-05]
[1617292827536,0.99998908,1949.9,1949.6,0.07267954]
[1617292828138,0.94998908,1949.9,1949.8,0.15952752]
[1617292828735,8.9,1949.9,1949.8,0.15952752]
[1617292828937,0.2299722,1950.1,1949.8,0.15952752]
[1617292829136,0.6399722,1950.1,1949.8,0.15952752]
[1617292829365,0.2299722,1950.1,1949.8,0.15952752]
[1617292830171,0.2299722,1950.1,1949.8,0.10952752]
[1617292831267,0.2299722,1950.1,1949.8,0.20359646]
[1617292831468,0.2299722,1950.1,1949.9,0.4]
[1617292831768,0.2299722,1950.1,1949.9,11.8939]
[1617292831988,0.2299722,1950.1,1950.0,2.42851352]
[1617292832291,0.39,1951.0,1950.1,0.49406894]
[1617292832490,14.1176,1951.4,1950.3,0.4]
[1617292832694,3.84593,1951.7,1950.4,2.42851352]
[1617292832989,0.38,1951.2,1950.5,0.09406894]
[1617292833391,0.38,1951.4,1950.5,0.09406894]
[1617292833595,1.4,1951.9,1950.6,35.75067302]
[1617292833795,1.20780128,1952.0,1951.4,14.6]
[1617292833796,1.67677364,1952.0,1951.4,14.6]
[1617292833992,1.28677364,1952.0,1951.5,2.4263763]
[1617292834624,0.35,1952.3,1952.0,2.44578786]
[1617292834625,0.03294036,1952.3,1952.0,2.44578786]
[1617292834919,0.03294036,1952.3,1952.0,2.87693158]
[1617292835120,0.03294036,1952.3,1952.0,2.46693158]
[1617292835418,0.03294036,1952.3,1951.9,13.312]
[1617292835419,0.38,1952.0,1951.9,10.76893158]
[1617292835620,0.48102382,1952.2,1951.9,7.39607504]
[1617292835821,0.30302654,1952.1,1951.9,7.39607504]
[1617292836122,0.48102382,1952.2,1951.9,7.39607504]
[1617292836522,0.30302654,1952.0,1951.9,7.39607504]
[1617292836920,0.25302654,1952.0,1951.9,9.8580364]
[1617292837243,0.48102382,1952.2,1951.9,7.39607504]
[1617292837440,0.43102382,1952.2,1951.9,9.8580364]
[1617292837640,4.10001079,1952.7,1952.0,26.95]
[1617292837843,4.10001079,1952.7,1952.1,2.45362754]
[1617292838146,4.10001079,1952.7,1952.6,6.34839726]
[1617292838543,4.10001079,1952.7,1952.6,5.84839726]
[1617292838943,3.10001079,1952.7,1952.6,13.79839726]
[1617292839144,3.10001079,1952.7,1952.6,5.84839726]
[1617292839745,1.0,1952.9,1952.7,26.55]
[1617292839969,1.0,1952.9,1952.8,22.66102994]
[1617292840164,1.0,1952.9,1952.8,2.31102994]
[1617292840588,1.0,1952.9,1952.6,8.3094272]
[1617292841295,0.31938016,1953.3,1952.7,26.55]
[1617292841490,8.016e-05,1953.3,1953.2,0.38]
[1617292841691,0.00330994,1953.5,1953.3,2.4496526]
[1617292841894,7.45,1953.8,1953.2,9.7725]
[1617292842290,7.45,1953.8,1953.2,9.2925]
[1617292842494,9.9031874,1953.8,1953.2,9.2925]
[1617292842796,0.4,1953.6,1952.9,0.50406894]
[1617292843002,0.41,1953.4,1952.9,0.09406894]
[1617292843299,0.09044923,1953.3,1952.9,0.09406894]
[1617292843496,0.38,1953.1,1952.8,0.14535908]
[1617292843697,2.4531874,1953.0,1952.8,0.14535908]
[1617292843901,0.39,1952.9,1952.8,1.908e-05]
[1617292844096,0.39,1952.9,1952.4,0.07267954]
[1617292844298,9.3453,1952.9,1952.4,0.07267954]
[1617292844598,26.93,1952.5,1952.4,0.07267954]
[1617292844800,35.5545,1952.5,1952.4,0.07267954]
[1617292844997,36.7545,1952.5,1952.4,9.54e-06]
[1617292845618,52.44238,1952.5,1952.4,9.54e-06]
[1617292846220,52.44238,1952.5,1952.4,0.07268908]
[1617292847019,25.51238,1952.5,1952.4,0.07268908]
[1617292847329,25.51238,1952.5,1952.4,0.14536862]
[1617292847330,7.68788,1952.5,1952.4,0.14536862]
[1617292847520,9.36,1952.5,1951.3,10.11367507]
[1617292847742,0.39,1952.1,1951.3,7.78108894]
[1617292847943,0.4,1951.9,1951.6,0.09406894]
[1617292848142,0.4,1951.9,1951.3,7.68702]
[1617292848143,0.4,1951.9,1951.4,0.09406894]
[1617292848348,7.4938,1951.9,1951.4,0.07267954]
[1617292848743,7.3938,1951.9,1951.4,0.07267954]
[1617292849345,7.0938,1951.9,1951.4,0.07267954]
[1617292849548,7.0938,1951.9,1951.7,0.39]
[1617292849747,6.9938,1951.9,1951.3,0.41]
[1617292849946,5.9938,1951.9,1951.6,0.4]
[1617292850568,5.9938,1951.9,1951.8,11.34]
[1617292850768,0.1822139,1952.5,1951.9,9.25]
[1617292850769,0.5722139,1952.5,1951.9,9.25]
[1617292851475,0.1822139,1952.5,1952.1,0.38]
[1617292851769,0.1822139,1952.5,1952.0,0.09406894]
[1617292851968,0.1822139,1952.5,1952.1,0.39]
[1617292852170,0.0487425,1953.3,1952.5,2.46097422]
[1617292852476,0.0487425,1953.3,1952.6,0.09406894]
[1617292852670,0.4487425,1953.3,1952.5,0.09406894]
[1617292853094,0.38,1953.4,1952.9,0.15]
[1617292853596,0.01218562,1953.3,1952.9,0.15]
[1617292854195,5.45,1953.2,1952.6,3.39839358]
[1617292854395,5.45,1953.2,1952.6,3.30432464]
[1617292854396,0.4,1953.2,1952.6,3.30432464]
[1617292854695,0.4,1953.2,1952.7,0.09406894]
[1617292854696,0.39,1953.2,1952.7,0.09406894]
[1617292854899,0.38,1953.6,1952.8,9.39]
[1617292855098,0.38,1953.6,1952.9,0.49406894]
[1617292855501,0.41,1953.4,1952.9,0.09406894]
[1617292855719,0.38,1953.6,1952.9,0.09406894]
[1617292855921,0.14522923,1953.3,1953.0,0.39]
[1617292856123,0.4,1953.1,1952.9,0.4]
[1617292856328,0.4,1953.1,1952.6,0.09406894]
[1617292856627,2.46813592,1953.2,1952.2,0.39]
[1617292856628,0.39,1952.9,1952.2,0.39]
[1617292856821,2.50364027,1953.1,1952.4,0.38]
[1617292857023,7.68566,1952.8,1952.2,0.39]
[1617292857223,7.68566,1952.8,1951.9,0.09406894]
[1617292857224,11.92872,1952.8,1951.9,0.09406894]
[1617292857423,4.24306,1952.8,1952.1,0.38]
[1617292857626,2.0498335,1952.6,1951.9,0.09406894]
[1617292857826,11.4467335,1952.6,1951.8,0.09406894]
[1617292858026,0.39,1952.2,1951.6,0.09406894]
[1617292858242,17.50394,1952.2,1951.4,0.39]
[1617292858443,0.4,1952.0,1951.4,0.39]
[1617292858742,1.1304,1952.1,1951.4,0.39]
[1617292859146,0.41,1952.0,1951.5,2.86813592]
[1617292859349,0.7404,1952.1,1951.5,0.4]
[1617292859543,9.4259,1952.2,1951.5,0.4]
[1617292859844,8.4259,1952.2,1951.7,0.34]
[1617292860146,8.3759,1952.2,1951.7,0.34]
[1617292860542,8.3759,1952.2,1951.4,0.09406894]
[1617292860744,8.3759,1952.2,1951.5,0.38]
[1617292860967,8.7559,1952.2,1951.5,0.38]
[1617292861369,0.0735,1951.9,1951.3,7.68663]
[1617292861568,0.0735,1951.9,1951.5,0.448]
[1617292861569,0.2135,1951.9,1951.5,0.448]
[1617292862670,0.6035,1951.9,1951.2,0.09406894]
[1617292862872,0.105,1951.8,1951.4,0.76]
[1617292863072,0.0735,1951.9,1951.5,0.35]
[1617292863271,0.0735,1951.9,1951.7,0.39]
[1617292863492,0.0735,1951.9,1951.7,0.28]
[1617292863894,0.0735,1951.9,1951.7,0.67]
[1617292864594,7.68722,1952.3,1951.8,14.2]
[1617292864793,0.44550191,1952.8,1951.9,0.42]
[1617292864993,0.44550191,1952.8,1952.5,0.41]
[1617292864994,0.105,1952.8,1952.5,0.41]
[1617292865209,2.00780681,1952.9,1952.6,0.28]
[1617292865595,2.00780681,1952.9,1952.2,0.39]
[1617292865797,2.00780681,1952.9,1952.3,0.562]
[1617292865798,0.105,1952.8,1952.3,0.562]
[1617292866117,0.105,1952.8,1952.5,0.497]
[1617292866118,7.6848,1952.8,1952.5,0.497]
[1617292866325,7.6848,1952.8,1952.3,0.38]
[1617292866617,7.6848,1952.8,1952.4,0.28]
[1617292866923,7.6848,1952.8,1952.1,2.44359314]
[1617292867118,7.6848,1952.8,1952.4,0.4]
[1617292867320,14.68862417,1953.7,1952.6,56.55]
[1617292867526,0.06241153,1953.8,1952.9,0.39]
[1617292867727,0.06241153,1953.8,1953.1,5.01]
[1617292868022,0.06241153,1953.8,1953.4,0.41]
[1617292868221,0.46241153,1953.8,1953.2,1.3961]
[1617292868422,0.46241153,1953.8,1953.3,8.08896]
[1617292868423,0.06241153,1953.8,1953.3,8.08896]
[1617292868621,1.33060699,1953.9,1953.3,8.08896]
[1617292868844,1.33060699,1953.9,1953.3,7.93896]
[1617292868845,0.06241153,1953.8,1953.3,7.93896]
[1617292869046,0.45241153,1953.8,1953.3,7.67896]
[1617292869246,0.45241153,1953.8,1953.3,7.77302894]
[1617292869448,0.45241153,1953.8,1953.3,8.05302894]
[1617292869645,0.45241153,1953.8,1953.3,7.77302894]
[1617292869845,0.34060699,1953.9,1953.3,7.77302894]
[1617292870155,0.06241153,1953.8,1953.4,10.8]
[1617292870452,0.41,1953.7,1953.2,0.09406894]
[1617292870652,0.06241153,1953.8,1953.1,0.09406894]
[1617292870653,0.38,1953.5,1953.1,0.09406894]
[1617292870950,0.17805319,1953.8,1953.0,0.48406894]
[1617292871158,0.17805319,1953.8,1953.2,2.79579902]
[1617292871393,0.17805319,1953.8,1953.2,0.39]
[1617292871585,0.17805319,1953.8,1953.5,0.4]
[1617292871787,0.17805319,1953.8,1953.6,0.38]
[1617292871999,0.17805319,1953.8,1953.4,30.0]
[1617292872186,0.17805319,1953.8,1953.4,30.4]
[1617292872390,0.17805319,1953.8,1953.4,38.07847]
[1617292872690,0.11564166,1953.8,1953.4,7.67847]
[1617292872886,0.39,1953.7,1953.4,7.67847]
[1617292873087,0.17805319,1953.8,1953.4,7.67847]
[1617292873288,0.11564166,1953.8,1953.4,10.08426902]
[1617292873488,0.17805319,1953.8,1953.4,10.08426902]
[1617292873688,0.17805319,1953.8,1953.7,20.14]
[1617292874091,0.11564166,1953.8,1953.7,20.0482]
[1617292874292,0.17805319,1953.8,1953.7,19.634848]
[1617292874696,0.17805319,1953.8,1953.7,49.634848]
[1617292874895,1.64396504,1954.3,1953.8,20.8]
[1617292875592,1.64396504,1954.3,1953.7,0.09406894]
[1617292876499,0.39,1954.0,1953.6,0.09406894]
[1617292876714,1.54396504,1954.3,1953.6,0.41]
[1617292876916,0.41,1954.2,1953.6,0.41]
[1617292877220,1.54396504,1954.3,1953.9,0.39]
[1617292877615,1.94396504,1954.3,1953.6,8.06798]
[1617292877816,1.94396504,1954.3,1953.3,0.09406894]
[1617292878017,1.94396504,1954.3,1953.3,0.49406894]
[1617292878018,0.11518006,1954.2,1953.3,0.49406894]
[1617292878216,0.11518006,1954.2,1953.3,30.49406894]
[1617292878418,0.11518006,1954.2,1953.8,0.4]
[1617292878623,0.11518006,1954.2,1953.5,0.09406894]
[1617292878816,0.11518006,1954.2,1953.7,0.41]
[1617292879016,0.51518006,1954.2,1953.5,0.09406894]
[1617292879240,0.11518006,1954.2,1953.6,0.4]
[1617292879442,0.11518006,1954.2,1953.9,0.41]
[1617292879851,1.49396504,1954.3,1953.9,0.41]
[1617292880041,0.6091451,1954.3,1953.9,0.41]
[1617292880242,0.6091451,1954.3,1953.6,0.09406894]
[1617292880443,12.16,1954.2,1953.7,0.39]
[1617292880744,11.75,1954.2,1953.5,29.97546894]
[1617292880944,2.37866058,1954.1,1953.4,7.67848]
[1617292881143,10.15293952,1954.1,1952.9,20.63955613]
[1617292881443,10.15293952,1954.1,1953.1,0.38]
[1617292881444,0.39,1953.7,1953.1,0.38]
[1617292881643,7.8026,1953.7,1953.3,0.4]
[1617292881871,7.8026,1953.7,1953.5,0.4]
[1617292882167,0.49406894,1954.1,1953.5,0.4]
[1617292882168,0.6091451,1954.3,1953.6,18.1]
[1617292882383,0.5591451,1954.3,1953.7,2.39053532]
[1617292882567,0.5591451,1954.3,1953.8,0.41]
[1617292882867,0.5591451,1954.3,1953.8,0.39]
[1617292883467,0.9391451,1954.3,1953.6,40.26960613]
[1617292883771,0.9391451,1954.3,1953.7,5.39]
[1617292883966,0.9391451,1954.3,1953.7,35.39]
[1617292883967,0.5591451,1954.3,1953.7,35.39]
[1617292884168,0.5591451,1954.3,1953.8,5.42]
[1617292884370,0.5591451,1954.3,1953.7,12.68723]
[1617292884598,0.39,1954.2,1953.7,12.68723]
[1617292884802,0.5591451,1954.3,1953.7,12.68723]
[1617292885007,9.7941193,1954.7,1953.8,19.0]
[1617292885313,0.11517659,1954.2,1953.7,12.68723]
[1617292885520,0.11517659,1954.2,1953.9,0.4]
[1617292885913,0.11517659,1954.2,1953.7,12.68723]
[1617292886117,0.11517659,1954.2,1953.7,13.07723]
[1617292886614,0.11517659,1954.2,1953.9,0.39]
[1617292887543,0.11517659,1954.2,1954.0,0.39]
[1617292887744,0.11517659,1954.2,1953.9,5.01]
[1617292888037,0.52517659,1954.2,1953.8,0.09406894]
[1617292888240,0.01517659,1954.2,1953.8,0.09406894]
[1617292888939,0.01517659,1954.2,1953.9,5.01]
[1617292889139,0.01517659,1954.2,1953.8,0.47406894]
[1617292889340,0.01517659,1954.2,1954.0,1.2]
[1617292889539,0.01517659,1954.2,1954.1,0.39]
[1617292889742,0.01517659,1954.2,1954.1,7.7750307]
[1617292890046,0.35,1954.8,1954.1,8.9750307]
[1617292890248,0.35,1954.8,1954.4,0.4]
[1617292890444,0.35,1954.8,1954.3,0.39]
[1617292890645,0.75,1954.8,1954.3,5.01]
[1617292890849,0.75,1954.8,1954.2,4.61]
[1617292891245,0.86514884,1954.8,1954.2,4.61]
[1617292891444,0.38,1954.5,1954.2,4.61]
[1617292891645,0.39,1954.6,1954.2,4.61]
[1617292891845,16.57855512,1954.3,1953.9,0.09406894]
[1617292892046,16.57855512,1954.3,1953.6,11.59472324]
[1617292892478,16.57855512,1954.3,1953.6,1.48104817]
[1617292892479,0.39,1954.0,1953.6,1.48104817]
[1617292892686,8.5404,1954.1,1953.6,1.48104817]
[1617292892879,0.01855512,1953.8,1953.6,1.48104817]
[1617292893080,0.01855512,1953.8,1953.6,0.25]
[1617292893478,0.9635,1953.9,1953.6,0.25]
[1617292893681,0.01855512,1953.8,1953.6,0.25]
[1617292894080,0.93205512,1953.9,1953.6,0.25]
[1617292894289,0.93205512,1953.9,1953.6,0.63]
[1617292894482,17.6861,1954.3,1953.7,0.4]
[1617292894483,17.2861,1954.3,1953.7,0.4]
[1617292894682,3.8480798,1954.7,1953.8,0.38]
[1617292894683,9.2827,1954.6,1953.8,0.38]
[1617292895002,2.5534798,1954.7,1953.8,0.38]
[1617292895204,0.39,1954.6,1953.9,0.41]
[1617292895502,7.67847,1954.5,1953.9,0.41]
[1617292895701,0.39,1954.6,1953.9,0.41]
[1617292896408,0.46514884,1954.8,1954.0,0.47406894]
[1617292896704,8.07758,1954.7,1954.1,2.33624652]
[1617292896903,7.67758,1954.7,1954.3,0.39]
[1617292897211,0.11516271,1954.6,1954.3,0.39]
[1617292897403,0.11516271,1954.6,1954.1,36.21]
[1617292897618,0.11516271,1954.6,1954.1,43.88649]
[1617292898218,0.11516271,1954.6,1954.1,44.26649]
[1617292898422,0.11516271,1954.6,1954.3,0.39]
[1617292898618,0.11516271,1954.6,1954.3,30.39]
[1617292899022,0.06516271,1954.6,1954.3,30.39]
[1617292899420,0.04945554,1954.4,1954.3,30.39]
[1617292899721,0.06516271,1954.6,1954.2,1.03848121]
[1617292899921,0.05295691,1954.4,1954.1,36.21]
[1617292900121,0.05295691,1954.4,1954.3,30.0]
[1617292900350,0.06516271,1954.6,1954.3,1.2]
[1617292900550,0.35,1954.8,1954.4,2.33624652]
[1617292900747,0.35,1954.8,1954.5,5.01]
[1617292900948,0.35,1954.9,1954.5,7.1]
[1617292901152,0.35,1954.9,1954.7,5.01]
[1617292901348,0.35,1954.9,1954.4,32.71624652]
[1617292901349,0.35,1954.9,1954.6,5.01]
[1617292901548,0.35,1954.9,1954.5,5.01]
[1617292901750,0.35,1954.9,1954.6,5.01]
[1617292901949,0.35,1954.9,1954.4,37.67509]
[1617292902147,0.35,1954.9,1954.3,5.01]
[1617292902349,10.3369,1954.9,1954.3,5.01]
[1617292902548,10.3369,1954.9,1954.4,5.01]
[1617292902773,10.3369,1954.9,1954.2,1.23104817]
[1617292902995,0.39,1954.6,1954.2,1.23104817]
[1617292903202,2.32294318,1954.5,1953.9,1.32511711]
[1617292903405,0.39,1954.2,1953.9,1.32511711]
[1617292903595,0.39,1954.2,1953.9,1.23104817]
[1617292903803,2.32294318,1954.1,1953.9,1.23104817]
[1617292904198,23.1,1954.0,1953.6,0.25]
[1617292904399,0.41,1953.9,1953.6,0.25]
[1617292904697,2.32294318,1953.8,1953.6,0.25]
[1617292904897,2.55959022,1953.9,1953.6,0.25]
[1617292905096,1.5277,1953.9,1953.6,0.25]
[1617292905296,3.85064318,1953.9,1953.6,0.25]
[1617292905501,0.41,1953.8,1953.6,0.25]
[1617292905712,31.47864318,1953.7,1953.6,0.25]
[1617292905904,30.47864318,1953.7,1953.1,10.23905]
[1617292906106,30.47864318,1953.7,1953.0,1.23104817]
[1617292906107,0.38,1953.4,1953.0,1.23104817]
[1617292906334,2.32133248,1953.3,1953.0,1.23104817]
[1617292906522,0.39,1953.3,1952.6,1.23104817]
[1617292906717,0.4,1953.1,1952.7,0.09406894]
[1617292906922,0.39,1952.9,1952.6,1.32511711]
[1617292907109,1.3121,1953.0,1952.6,1.23104817]
[1617292907608,1.3121,1953.0,1952.4,0.09406894]
[1617292907609,1.3121,1953.0,1952.5,4.00813824]
[1617292907814,10.96073248,1952.9,1952.3,7.6828]
[1617292908008,10.96073248,1952.9,1952.2,0.09406894]
[1617292908236,0.41,1952.8,1952.1,1.0]
[1617292908943,0.38,1952.6,1952.1,1.0]
[1617292909336,3.22623248,1952.8,1952.1,1.0]
[1617292909337,0.4,1952.3,1952.1,0.9]
[1617292909735,2.72133248,1952.3,1952.1,0.9]
[1617292909935,0.4,1952.3,1952.1,0.9]
[1617292910133,3.1621,1952.4,1952.1,0.9]
[1617292910332,3.1621,1952.4,1952.1,8.5834]
[1617292910954,1.2248,1952.4,1952.1,8.5834]
[1617292911153,1.0291,1952.4,1952.3,5.01]
[1617292911355,0.11526685,1952.8,1952.5,0.39]
[1617292911575,0.11526685,1952.8,1952.5,7.68184]
[1617292911772,0.11526685,1952.8,1952.7,5.01]
[1617292911955,6.85e-06,1952.8,1952.7,36.21]
[1617292912157,5.50677438,1953.9,1953.0,5.01]
[1617292912158,0.39,1953.7,1953.0,5.01]
[1617292912358,0.00677438,1953.9,1953.1,5.10406894]
[1617292912558,0.41677438,1953.9,1953.1,0.47406894]
[1617292912758,0.41677438,1953.9,1953.3,5.01]
[1617292913064,0.41677438,1953.9,1953.2,5.10406894]
[1617292913262,0.41677438,1953.9,1953.4,5.01]
[1617292913688,14.89885,1954.3,1953.4,12.45]
[1617292913689,3.24299438,1954.3,1953.4,12.45]
[1617292913881,3.24299438,1954.3,1953.8,0.38]
[1617292914188,3.24299438,1954.3,1953.6,0.4]
[1617292914189,0.39,1954.3,1953.6,0.4]
[1617292914481,0.39,1954.3,1953.4,0.09406894]
[1617292914482,1.59,1954.3,1953.4,0.09406894]
[1617292914884,0.41,1953.9,1953.3,0.09406894]
[1617292915185,0.39,1953.8,1953.4,5.01]
[1617292915385,11.34736,1954.3,1953.3,0.4]
[1617292915586,5.8883348,1954.4,1953.5,0.39]
[1617292915789,5.8883348,1954.4,1953.5,0.4]
[1617292916012,0.41,1954.2,1953.5,0.4]
[1617292916416,7.67988,1954.3,1953.7,0.39]
[1617292916612,0.41,1954.2,1953.6,0.39]
[1617292917013,7.67988,1954.3,1953.6,0.39]
[1617292917314,0.39,1954.3,1953.6,0.39]
[1617292917516,0.39,1954.3,1953.7,0.4]
[1617292917713,0.39,1954.3,1953.5,0.09406894]
[1617292918014,0.4,1954.0,1953.5,0.09406894]
[1617292918420,8.87888,1954.5,1953.6,0.41]
[1617292918421,7.67888,1954.5,1953.6,0.41]
[1617292918629,7.67888,1954.5,1953.7,0.39]
[1617292918830,7.67888,1954.5,1953.7,5.4]
[1617292919231,7.67888,1954.5,1953.9,5.01]